lending/lending_fUSD_20250425
["ID","MTS","AMOUNT","RATE_DAILY","PERIOD"]
[358938545,1745563848584,-166.66,0.00040894,2]
[358938546,1745563848593,-1152.0,0.00040931,2]
[358938547,1745563848603,-1169.87743463,0.00040986,2]
[358938548,1745563848612,-299.0,0.00040986,120]
[358938549,1745563848621,-200.0,0.00041,64]
[358938550,1745563848631,-1000.0,0.00041,8]
[358938551,1745563848641,-1000.0,0.00041,7]
[358938552,1745563848650,-1000.0,0.00041,6]
[358938553,1745563848660,-1000.0,0.00041,6]
[358938554,1745563848669,-1000.0,0.00041,5]
[358938555,1745563848679,-1000.0,0.00041,5]
[358938556,1745563848688,-1000.0,0.00041,120]
[358938557,1745563848698,-42905.20280799,0.00041,120]
[358938558,1745563848758,-425.40342273,0.00041,120]
[358938559,1745563921591,200.0,0.00036826,117]
[358938560,1745563921665,200.0,0.00034102,117]
[358938561,1745563921729,200.0,0.00034556,117]
[358938562,1745564041596,200.0,0.000374,117]
[358938563,1745564041659,200.0,0.00034436,117]
[358938564,1745564041760,200.0,0.00034759,117]
[358938565,1745564162078,200.0,0.00030167,117]
[358938566,1745564162155,200.0,0.00029176,117]
[358938567,1745564162312,200.0,0.00032729,117]
[358938568,1745564281631,200.0,0.00030167,117]
[358938569,1745564281729,200.0,0.00029176,117]
[358938570,1745564282036,200.0,0.00032076,117]
[358938571,1745564403937,200.0,0.00030167,117]
[358938572,1745564404153,200.0,0.00027425,117]
[358938573,1745564404258,200.0,0.00029916,117]
[358938574,1745564438720,393.0,0.00030137,120]
[358938575,1745564521931,200.0,0.00030167,117]
[358938576,1745564522065,200.0,0.00027425,117]
[358938577,1745564522147,200.0,0.00029916,117]
[358938579,1745564649465,200.0,0.00030167,117]
[358938580,1745564649537,200.0,0.00027425,117]
[358938581,1745564649569,200.0,0.00029916,117]
[358938583,1745564731559,250.0,0.00017,2]
[358938584,1745564762257,200.0,0.00030167,117]
[358938585,1745564762336,200.0,0.00027425,117]
[358938586,1745564762401,200.0,0.00029916,117]
[358938588,1745564881708,200.0,0.00030167,117]
[358938589,1745564881784,200.0,0.00027425,117]
[358938590,1745564881886,200.0,0.00030531,117]
[358938650,1745565001826,200.0,0.00030167,117]
[358938651,1745565001902,200.0,0.00027425,117]
[358938652,1745565002051,200.0,0.00030531,117]
[358938658,1745565031676,-500.0,0.00027425,2]
[358938659,1745565031686,-500.0,0.00027425,2]
[358938660,1745565031695,-371.78369569,0.00027425,2]
[358938661,1745565031704,-644.13,0.00027425,30]
[358938662,1745565031715,-6499.99,0.0003,3]
[358938663,1745565031724,-151.45,0.00032877,30]
[358938664,1745565031733,-150.0,0.00034,2]
[358938665,1745565031742,-876.0,0.00034851,2]
[358938666,1745565031751,-1600.0,0.0003515,3]
[358938667,1745565031760,-771.287,0.00035151,2]
[358938668,1745565031769,-796.0,0.00035151,2]
[358938669,1745565031779,-384.747,0.00035151,2]
[358938670,1745565031788,-644.13,0.00036139,30]
[358938671,1745565031797,-230.91,0.000365,7]
[358938672,1745565031807,-250.0,0.00036826,2]
[358938673,1745565031816,-974.21,0.00036826,30]
[358938674,1745565031826,-700.0,0.00036828,13]
[358938675,1745565031836,-700.0,0.00036828,13]
[358938676,1745565031846,-616.25335418,0.00036828,13]
[358938677,1745565031898,-83.74664582,0.00036828,13]
[358938678,1745565031908,-700.0,0.00036828,13]
[358938679,1745565031918,-700.0,0.00036828,13]
[358938680,1745565031927,-1643.49510592,0.000369,13]
[358938681,1745565031936,-152.0,0.00036949,3]
[358938682,1745565031945,-187.0,0.0003726,2]
[358938683,1745565031955,-1643.49510586,0.00037486,13]
[358938684,1745565031965,-603.48,0.00037546,2]
[358938685,1745565031974,-1643.49510586,0.00038072,14]
[358938686,1745565031983,-1000.0,0.000383,2]
[358938687,1745565031992,-500.0,0.00038337,2]
[358938688,1745565032002,-181.52260718,0.00038356,2]
[358938689,1745565032011,-1000.0,0.00038375,2]
[358938690,1745565032022,-152.0,0.00038539,4]
[358938692,1745565032031,-1643.49510586,0.00038659,14]
[358938694,1745565032041,-381.41,0.0003868,2]
[358938696,1745565032052,-1333.9617668,0.00038936,4]
[358938698,1745565032062,-200.0,0.00038994,2]
[358938700,1745565032072,-358.799999,0.00039,58]
[358938702,1745565032083,-157.34,0.00039006,2]
[358938704,1745565032093,-250.0,0.00039231,2]
[358938706,1745565032103,-1643.49510586,0.00039245,15]
[358938708,1745565032112,-150.0,0.00039254,2]
[358938710,1745565032121,-150.57,0.00039266,2]
[358938712,1745565032132,-200.0,0.00039496,2]
[358938714,1745565032141,-150.0,0.00039728,7]
[358938715,1745565032151,-603.48,0.00039809,2]
[358938717,1745565032160,-1643.49510586,0.00039831,15]
[358938718,1745565032169,-200.0,0.0004,61]
[358938719,1745565032179,-157.66,0.0004,30]
[358938720,1745565032188,-5294.0,0.0004,15]
[358938721,1745565032198,-150.0,0.0004011,2]
[358938722,1745565032208,-152.0,0.00040129,5]
[358938723,1745565032218,-154.073553,0.0004013,14]
[358938724,1745565032228,-128.67296687,0.0004013,14]
[358938728,1745565037667,-24.31080313,0.0004013,14]
[358938729,1745565037677,-151.0,0.0004013,14]
[358938730,1745565037687,-151.0,0.0004013,14]
[358938731,1745565037697,-151.0,0.0004013,14]
[358938732,1745565037707,-1082.438,0.0004013,57]
[358938733,1745565037717,-1643.49510586,0.00040417,15]
[358938734,1745565037727,-658.73278403,0.00040658,120]
[358938735,1745565037738,-10396.79386794,0.000408,30]
[358938736,1745565037809,-364.7,0.000408,30]
[358938737,1745565037821,-1444.31060824,0.000408,30]
[358938738,1745565037834,-438.18585542,0.000408,30]
[358938743,1745565040153,-150.0,0.000338,2]
[358938744,1745565040164,-151.0,0.00035631,2]
[358938745,1745565040175,-238.81,0.000362,7]
[358938746,1745565040185,-10570.9111003,0.000408,30]
[358938747,1745565040195,-921.65,0.000408,31]
[358938748,1745565040205,-921.65,0.000408,31]
[358938749,1745565040215,-921.65,0.000408,31]
[358938750,1745565040225,-921.65,0.000408,31]
[358938751,1745565040235,-921.65,0.000408,31]
[358938752,1745565040245,-921.65,0.000408,31]
[358938753,1745565040255,-921.65,0.000408,31]
[358938754,1745565040265,-921.65,0.000408,31]
[358938755,1745565040276,-921.65,0.000408,31]
[358938756,1745565040287,-921.65,0.000408,31]
[358938757,1745565040297,-831.96833207,0.000408,31]
[358938758,1745565040390,-89.68166793,0.000408,31]
[358938759,1745565040400,-921.65,0.000408,31]
[358938760,1745565040411,-110.9302533,0.000408,7]
[358938761,1745565040424,-39.0697467,0.000408,7]
[358938762,1745565040434,-429.9052533,0.000408,7]
[358938836,1745565042934,-70.0947467,0.000408,7]
[358938837,1745565042944,-150.0,0.000408,7]
[358938838,1745565042954,-500.0,0.000408,7]
[358938839,1745565042964,-150.0,0.000408,7]
[358938840,1745565042974,-154.89438261,0.00040855,7]
[358938841,1745565042984,-500.0,0.00040855,7]
[358938842,1745565042994,-150.0,0.00040855,7]
[358938843,1745565043003,-500.0,0.00040855,7]
[358938844,1745565043013,-150.0,0.00040855,7]
[358938845,1745565043024,-1000.0,0.000409,2]
[358938846,1745565043033,-2500.0,0.000409,2]
[358938847,1745565043045,-500.0,0.0004091,7]
[358938848,1745565043056,-150.0,0.0004091,7]
[358938849,1745565043070,-500.0,0.0004091,7]
[358938850,1745565043080,-150.0,0.0004091,7]
[358938851,1745565043091,-36200.1625,0.0004096,2]
[358938852,1745565043101,-5674.4389,0.0004096,2]
[358938853,1745565043111,-379.7202,0.0004096,2]
[358938854,1745565043121,-580.81202636,0.00040964,7]
[358938855,1745565043131,-282.57530088,0.00040964,7]
[358938856,1745565043142,-500.0,0.00040964,7]
[358938857,1745565043152,-263.22719017,0.00040964,7]
[358938858,1745565043162,-500.0,0.00040973,5]
[358938859,1745565043172,-170.36,0.00040984,120]
[358938860,1745565043182,-947.1671,0.00040986,2]
[358938861,1745565043192,-615.54890453,0.00040986,2]
[358938862,1745565043202,-233.18115678,0.0004099,31]
[358938864,1745565043212,-500.0,0.0004099,31]
[358938866,1745565043223,-500.0,0.0004099,31]
[358938867,1745565043232,-500.0,0.0004099,31]
[358938868,1745565043242,-631.52368551,0.0004099,31]
[358938869,1745565043253,-3965.40138164,0.00040991,2]
[358938870,1745565043266,-3143.611809,0.00040991,2]
[358939016,1745565046374,-494.84769732,0.00040991,2]
[358939019,1745565046402,-8523.603,0.00040991,2]
[358939021,1745565046414,-2720.48355954,0.00040991,2]
[358939023,1745565046426,-37534.9372895,0.00040991,2]
[358939025,1745565080524,2000.0,0.00037808,60]
[358939026,1745565086479,2000.0,0.00037808,60]
[358939027,1745565093111,2000.0,0.00037808,60]
[358939028,1745565102487,2000.0,0.00037808,60]
[358939029,1745565121867,200.0,0.00036812,117]
[358939030,1745565121909,200.0,0.00033665,117]
[358939031,1745565121975,200.0,0.0003397,117]
[358939032,1745565241999,200.0,0.00036906,117]
[358939033,1745565242194,200.0,0.00033552,117]
[358939035,1745565484490,283.2,0.00037808,60]
[358939036,1745565574142,1002.0,0.00037808,60]
[358939037,1745565671942,10000.0,0.00037808,60]
[358939038,1745565681568,10000.0,0.00037808,60]
[358939039,1745565689308,10000.0,0.00037808,60]
[358939040,1745565714998,8696.8,0.00037808,60]
[358939045,1745565908026,25409.0,0.0002,2]
[358939046,1745565908063,1093350.51283354,0.0002,2]
[358939074,1745566165297,170.36,0.00037321,120]
[358939085,1745566202896,2000.0,0.0002,4]
[358939091,1745566231769,-1570.888003,0.00019731,2]
[358939095,1745566231779,-2430.86387076,0.0001983,2]
[358939096,1745566231788,-1477.9908,0.000199,2]
[358939098,1745566231797,-201.90982108,0.000199,2]
[358939101,1745566231807,-285.25631644,0.000199,2]
[358939102,1745566231817,-836.03535002,0.000199,2]
[358939103,1745566231826,-576.87588432,0.000199,2]
[358939104,1745566231848,-615.85558201,0.000199,2]
[358939105,1745566231864,-413.4455413,0.000199,2]
[358939106,1745566231958,-1111.14039237,0.000199,2]
[358939107,1745566231968,-687.70083544,0.000199,2]
[358939108,1745566231993,-88.83910945,0.000199,2]
[358939109,1745566232003,-1395.66051746,0.000199,2]
[358939110,1745566232012,-388.49149309,0.00019999,2]
[358939140,1745566238287,-189.5719198,0.000199,2]
[358939141,1745566238297,-111.50850691,0.00019999,2]
[358939142,1745566238308,-500.0,0.00019999,2]
[358939143,1745566238318,-500.0,0.00019999,2]
[358939144,1745566238329,-500.0,0.00019999,2]
[358939145,1745566238339,-500.0,0.00019999,2]
[358939146,1745566238349,-500.0,0.00019999,2]
[358939147,1745566238360,-500.0,0.00019999,2]
[358939148,1745566238370,-500.0,0.00019999,2]
[358939149,1745566238380,-500.0,0.00019999,2]
[358939150,1745566238391,-500.0,0.00019999,2]
[358939151,1745566238402,-500.0,0.00019999,2]
[358939152,1745566238413,-258.63602451,0.00019999,2]
[358939153,1745566238423,-500.0,0.00019999,2]
[358939154,1745566238433,-500.0,0.00019999,2]
[358939155,1745566238443,-500.0,0.00019999,2]
[358939156,1745566238453,-69914.62526598,0.0002,2]
[358939157,1745566238463,-615170.61814677,0.0002,2]
[358939158,1745566238475,-2494318.525,0.0002,2]
[358939159,1745566238488,-582.68101033,0.0002,2]
[358939160,1745566238500,-3648.08833458,0.0002,2]
[358939161,1745566238529,-843.16682932,0.0002,2]
[358939162,1745566238541,-1852.7692107,0.0002,2]
[358939163,1745566238570,-11099.50470868,0.0002,2]
[358939164,1745566238583,-29264.59833013,0.0002,2]
[358939172,1745566240172,-185.54803798,0.0002,2]
[358939173,1745566240183,-474.45196202,0.0002,2]
[358939174,1745566240197,-711609.69981695,0.0002,2]
[358939175,1745566240208,-4205495.06818042,0.0002,2]
[358939176,1745566240222,-558.89350208,0.0002,2]
[358939177,1745566240312,-21464.4854165,0.0002,2]
[358939178,1745566240419,-1578.84212413,0.0002,2]
[358939186,1745566242800,-68.42286676,0.0002,2]
[358939194,1745566245883,-268.987887,0.0002,2]
[358939195,1745566245896,-318.8803487,0.0002,2]
[358939196,1745566245911,-310.0594,0.0002,2]
[358939197,1745566246081,-1893.52649087,0.0002,2]
[358939198,1745566246092,-4507.43358716,0.0002,2]
[358939199,1745566246103,-4118.604,0.0002,2]
[358939200,1745566246124,-364.3572772,0.0002,2]
[358939201,1745566246136,-1554.76,0.0002,2]
[358939218,1745566268919,-230.88090116,0.000199,2]
[358939219,1745566274877,-178.67950502,0.000199,2]
[358939220,1745566278053,-350.0,0.000199,2]
[358939222,1745566534006,250.0,0.00017,2]
[358939223,1745566535097,300.0,0.00019,2]
[358939425,1745567431959,-865.951,0.000196,2]
[358939426,1745567431970,-281.78339611,0.0001988,2]
[358939427,1745567431980,-752.431815,0.000199,2]
[358939428,1745567431991,-698.88595041,0.000199,2]
[358939429,1745567432003,-930.0,0.00019999,2]
[358939430,1745567432015,-300.0,0.00019999,2]
[358939431,1745567432027,-4104.50575698,0.0002,2]
[358939432,1745567432040,-659.91070952,0.0002,2]
[358939433,1745567432060,-15422.6634235,0.0002,2]
[358939434,1745567432073,-2413.23689158,0.0002,2]
[358939435,1745567432090,-3765.19850992,0.0002,2]
[358939465,1745567438442,-5576.43037351,0.0002,2]
[358939466,1745567438512,-1095.0,0.0002,2]
[358939523,1745567445990,-281.74122106,0.0002,2]
[358939524,1745567446002,-1415.79810418,0.0002,2]
[358939525,1745567446014,-8882.5,0.0002,2]
[358939526,1745567446128,-5523.90845581,0.0002,2]
[358939527,1745567446272,-536.04114452,0.0002,2]
[358939528,1745567446284,-1094.347205,0.0002,2]
[358939532,1745567462771,13863.0,0.00037,60]
[358939533,1745567800569,627.23387849,0.00037808,60]
[358939535,1745568242828,170.36,0.00033968,120]
[358939536,1745568283149,-692.761,0.000196,2]
[358939537,1745568283175,-154.06766927,0.0001988,2]
[358939538,1745568283202,-628.99735536,0.000199,2]
[358939539,1745568283229,-900.0,0.00019999,2]
[358939540,1745568283256,-151.0,0.00019999,2]
[358939541,1745568283281,-83773.17397537,0.0002,2]
[358939542,1745568337425,250.0,0.00017,2]
[358939558,1745568554156,60666.35469763,0.000378,60]
[358939604,1745568632249,-194.42542069,0.000199,2]
[358939606,1745568632259,-677.1886335,0.000199,2]
[358939608,1745568632269,-566.09761977,0.000199,2]
[358939610,1745568632279,-677.40490869,0.00019972,2]
[358939612,1745568632293,-522.59509131,0.00019972,2]
[358939615,1745568632303,-47.32494628,0.00019973,2]
[358939618,1745568632323,-112.59828989,0.00019973,2]
[358939620,1745568632333,-500.0,0.00019973,2]
[358939622,1745568632344,-500.0,0.00019973,2]
[358939624,1745568632355,-153.34857871,0.00019973,2]
[358939626,1745568632364,-152.39501149,0.00019986,2]
[358939637,1745568632534,-10999.79317791,0.00019986,2]
[358939638,1745568632545,-271.24185666,0.00019999,2]
[358939639,1745568632556,-151.0,0.00019999,2]
[358939640,1745568632566,-500.0,0.00019999,2]
[358939641,1745568632576,-306.51511384,0.00019999,2]
[358939642,1745568632586,-11671.44985159,0.0002,2]
[358939656,1745568638215,-151.0,0.00019999,2]
[358939657,1745568638225,-1228.7967616,0.0002,2]
[358939658,1745568638287,-4437.248853,0.0002,2]
[358939659,1745568638358,-2252.16431864,0.0002,2]
[358939660,1745568638427,-12849.30762479,0.0002,2]
[358939664,1745568639029,-33331.1095328,0.0002,2]
[358939770,1745568640492,-722.17,0.0002,2]
[358939777,1745568640698,-1124.04100611,0.0002,2]
[358939794,1745568643648,-8377.0887549,0.0002,2]
[358939797,1745568646234,-7642.09580211,0.0002,2]
[358939801,1745568646424,-4698.6786,0.0002,2]
[358939802,1745568646507,-1548.4,0.0002,2]
[358939803,1745568646607,-41577.62075557,0.0002,2]
[358939813,1745569526924,761.41605821,0.000108,2]
[358939814,1745569529548,4043.16052202,0.00011,2]
[358939815,1745569538176,1316.42643881,9e-05,2]
[358939816,1745569557306,1243.13975947,6.94e-05,2]
[358939817,1745569569826,3063.2733753,8e-05,2]
[358939820,1745569677230,13315.43257878,0.0001,2]
[358939821,1745569695125,5947.97328159,0.0001439,2]
[358939822,1745569698124,404.79367494,0.000135,2]
[358939823,1745569698290,296.88806038,0.000125,2]
[358939824,1745569705574,1865.86111643,0.0001,2]
[358939825,1745569715652,1376.91435263,0.000149,2]
[358939826,1745569737600,500.0,0.00037808,60]
[358939827,1745569751039,1000.0,0.00037808,60]
[358939851,1745569796461,500.0,0.00037808,60]
[358939852,1745569803366,2000.0,0.0002,4]
[358939860,1745569832315,-408.0,0.00019899,2]
[358939861,1745569832325,-612.98727451,0.000199,2]
[358939862,1745569832335,-137.89080954,0.000199,2]
[358939866,1745569832833,-494.68641356,0.000199,2]
[358939867,1745569832849,-509.48785782,0.000199,2]
[358939868,1745569832860,-546.42572863,0.000199,2]
[358939869,1745569832873,-455.83656727,0.000199,2]
[358939870,1745569832884,-198.64297499,0.000199,2]
[358939871,1745569832895,-6627.9474106,0.000199,2]
[358939872,1745569832906,-200.45153412,0.000199,2]
[358939873,1745569832916,-634.33728717,0.000199,2]
[358939874,1745569832927,-504.53182211,0.00019973,2]
[358939875,1745569832939,-500.0,0.00019973,2]
[358939876,1745569832949,-9890.1379834,0.00019986,2]
[358939877,1745569832960,-6633.02406643,0.0001999,2]
[358939878,1745569832971,-300.0,0.00019999,2]
[358939879,1745569832981,-33176.12757588,0.0002,2]
[358939880,1745569832994,-485.0,0.0002,2]
[358939881,1745569833154,-5214.2065113,0.0002,2]
[358939882,1745569833167,-1305.0,0.0002,2]
[358939883,1745569833179,-470.69720462,0.0002,2]
[358939885,1745569838335,-160.82532817,0.0001999,2]
[358939886,1745569838345,-1661.67517183,0.0002,2]
[358939887,1745569838359,-1079.50485,0.0002,2]
[358939888,1745569838371,-1775.89999999,0.0002,2]
[358939889,1745569838383,-3614.78972219,0.0002,2]
[358939890,1745569838400,-2704.56,0.0002,2]
[358939891,1745569838444,-447.89134999,0.0002,2]
[358939912,1745569840618,-1243.49658471,0.0002,2]
[358939913,1745569840630,-280.43259657,0.0002,2]
[358939914,1745569840888,-636.0425114,0.0002,2]
[358939915,1745569840902,-464.03396,0.0002,2]
[358939916,1745569840917,-788.7241764,0.0002,2]
[358939932,1745569845087,171.75,0.00017572,2]
[358939933,1745569846372,-9391.2,0.0002,2]
[358939940,1745570141397,250.0,0.00017,2]
[358939941,1745570142517,300.0,0.00019,2]
[358940428,1745570340457,2673.82044015,0.00018,2]
[358940429,1745570521492,1026.06009025,0.00018,2]
[358940432,1745570823320,711.27,0.00017819,2]
[358940441,1745570875096,1000.0,0.00037,60]
[358940442,1745570888190,171.75,0.00015643,2]
[358940709,1745571002424,2000.0,0.0002,4]
[358940710,1745571010576,250.0,0.000378,60]
[358940711,1745571017497,250.0,0.000378,60]
[358940712,1745571028109,250.0,0.000378,60]
[358940730,1745571031935,-6957.89999676,0.00019301,2]
[358940732,1745571031952,-720.04,0.00019301,2]
[358940735,1745571031965,-108.31000324,0.00019301,2]
[358940737,1745571031976,-5202.6645534,0.0001935,2]
[358940745,1745571032043,-9892.9058273,0.0001935,2]
[358940764,1745571037452,-937.98721303,0.0001935,2]
[358940765,1745571037505,-761.39912051,0.0001935,2]
[358940767,1745571037714,-563.94852852,0.0001935,2]
[358940768,1745571037726,-670.19085,0.0001935,2]
[358940769,1745571037739,-1728.65,0.0001935,2]
[358940770,1745571037750,-4142.25390724,0.0001935,2]
[358940771,1745571037760,-3262.85,0.0001943,2]
[358940772,1745571037770,-554.208,0.000196,2]
[358940773,1745571037780,-184.55,0.00019626,2]
[358940774,1745571037790,-1000.0,0.00019771,2]
[358940775,1745571037800,-211.83,0.0001986,2]
[358940776,1745571037810,-174.05559039,0.000199,2]
[358940778,1745571037819,-177.62946548,0.000199,2]
[358940780,1745571037829,-458.53907202,0.000199,2]
[358940782,1745571037839,-203.09019608,0.000199,2]
[358940784,1745571037848,-450.06857158,0.000199,2]
[358940786,1745571037857,-1259.10958599,0.000199,2]
[358940788,1745571037867,-198.64297499,0.000199,2]
[358940790,1745571037876,-9134.71,0.00019933,2]
[358940792,1745571037886,-200.0,0.00019933,2]
[358940794,1745571037896,-250.0,0.00019936,2]
[358940796,1745571037905,-250.0,0.00019972,2]
[358940798,1745571037915,-500.0,0.00019973,2]
[358940799,1745571037924,-549.85559879,0.00019973,2]
[358940800,1745571037934,-925.217,0.00019976,2]
[358940802,1745571037944,-8193.649648,0.00019986,2]
[358940803,1745571037954,-80344.6576108,0.00019986,2]
[358940804,1745571037964,-3921.8690651,0.00019986,2]
[358940805,1745571037973,-222.51639109,0.00019986,2]
[358940806,1745571037983,-263.83720917,0.0001999,2]
[358940807,1745571037993,-263.83720917,0.0001999,2]
[358940808,1745571038003,-311.89903357,0.00019999,2]
[358940809,1745571038012,-156.64300103,0.00019999,2]
[358940810,1745571038022,-855.0,0.0002,2]
[358940811,1745571038032,-379004.48105253,0.0002,2]
[358940812,1745571038042,-18797.17116395,0.0002,2]
[358940813,1745571038052,-177832.32369799,0.0002,2]
[358940814,1745571038065,-2494318.525,0.0002,2]
[358940833,1745571042771,-767.0,0.0002,2]
[358940834,1745571042781,-12703.942535,0.0002,2]
[358940835,1745571042830,-2251.19071353,0.0002,2]
[358940836,1745571042843,-22307.67968625,0.0002,2]
[358940837,1745571042966,-43497.78636531,0.0002,2]
[358940851,1745571045950,-385.87978179,0.0002,2]
[358940852,1745571045962,-4180.0,0.0002,2]
[358940853,1745571045988,-21277.03968441,0.0002,2]
[358940854,1745571046007,-373.63339823,0.0002,2]
[358940856,1745571046070,-3753.67623966,0.0002,2]
[358940857,1745571046082,-281.0,0.0002,2]
[358940863,1745571055384,321.0,0.000378,60]
[358940866,1745571470183,150051.0,0.00037808,60]
[358940868,1745571785559,150.0,0.00037808,60]
[358940870,1745571945918,250.0,0.00017,2]
[358940878,1745572042418,709.08,0.00018109,2]
[358940879,1745572053610,300.0,0.00037808,60]
[358941022,1745572232237,-1626.60839758,0.00019306,2]
[358941030,1745572232306,-358.55045342,0.00019306,2]
[358941032,1745572232318,-443.367,0.000196,2]
[358941034,1745572232327,-109.65254658,0.000196,2]
[358941037,1745572232338,-46.49785842,0.000196,2]
[358941039,1745572232348,-184.30452831,0.000199,2]
[358941040,1745572232357,-412.6851648,0.000199,2]
[358941042,1745572232367,-500.0,0.00019973,2]
[358941045,1745572232377,-11.0695859,0.00019976,2]
[358941185,1745572237665,-246.70002077,0.00019976,2]
[358941186,1745572237677,-270.5184633,0.00019985,2]
[358941187,1745572237827,-6725.2315367,0.00019985,2]
[358941188,1745572237838,-6788.1656117,0.00019986,2]
[358941189,1745572237848,-47737.94021965,0.00019986,2]
[358941229,1745572245868,-521.19044734,0.00019986,2]
[358941230,1745572245892,-18303.74000831,0.00019986,2]
[358941231,1745572245903,-3186.634581,0.00019986,2]
[358941232,1745572245913,-15038.11287458,0.00019986,2]
[358941233,1745572245923,-204.8319863,0.00019986,2]
[358941234,1745572245935,-62184.59456974,0.0001999,2]
[358941235,1745572245945,-263.83720918,0.0001999,2]
[358941236,1745572245957,-690.0,0.0002,2]
[358941237,1745572245968,-59375.94877089,0.0002,2]
[358941244,1745573020079,1000.0,0.00037808,60]
[358941423,1745573149991,673.62,0.00018254,2]
[358941468,1745573326432,558.0,0.00037808,60]
[358941469,1745573343105,197.65,0.000191,2]
[358941474,1745573402435,2000.0,0.0002,4]
[358941482,1745573432174,-707.28,0.00019557,2]
[358941571,1745573437915,-500.0,0.00019413,2]
[358941572,1745573437925,-3400.2565384,0.00019557,2]
[358941573,1745573438051,-900.000002,0.00019557,2]
[358941574,1745573438160,-3283.1834596,0.00019557,2]
[358941575,1745573438171,-300.0,0.00019599,2]
[358941576,1745573438181,-354.693,0.000196,2]
[358941577,1745573438192,-1695.0,0.000196,2]
[358941578,1745573438203,-250.0,0.00019623,2]
[358941579,1745573438212,-1000.0,0.000197,2]
[358941581,1745573438222,-1652.0,0.000197,2]
[358941583,1745573438231,-2491.7018763,0.00019799,2]
[358941585,1745573438241,-150.0,0.00019839,2]
[358941587,1745573438250,-184.55,0.00019887,2]
[358941589,1745573438259,-184.30452831,0.000199,2]
[358941591,1745573438270,-554.31612827,0.000199,2]
[358941593,1745573438281,-1727.55158202,0.000199,2]
[358941595,1745573438292,-2156.88454658,0.000199,2]
[358941597,1745573438303,-314.95,0.0001992,2]
[358941599,1745573438314,-839.40639066,0.00019931,2]
[358941601,1745573438324,-203.09019607,0.00019931,2]
[358941603,1745573438335,-300.04571438,0.00019931,2]
[358941605,1745573438345,-514.0,0.0001997,2]
[358941607,1745573438355,-500.76074095,0.00019973,2]
[358941609,1745573438364,-500.0,0.00019973,2]
[358941611,1745573438374,-459.34394019,0.00019973,2]
[358941613,1745573438384,-4142.45798575,0.00019976,2]
[358941615,1745573438394,-2670.0241502,0.00019986,2]
[358941618,1745573438404,-5627.0474654,0.00019986,2]
[358941621,1745573438413,-33538.08942652,0.00019986,2]
[358941835,1745573442966,-21607.03016558,0.00019986,2]
[358941837,1745573442975,-196.0,0.0001999,2]
[358941839,1745573442984,-196.0,0.0001999,2]
[358941841,1745573442993,-220.85383352,0.0001999,2]
[358941843,1745573443003,-618.51482666,0.00019997,2]
[358941845,1745573443012,-500.0,0.00019999,2]
[358941847,1745573443022,-500.0,0.00019999,2]
[358941848,1745573443031,-500.0,0.00019999,2]
[358941850,1745573443040,-300.0,0.00019999,2]
[358941852,1745573443049,-500.0,0.00019999,2]
[358941854,1745573443059,-500.0,0.00019999,2]
[358941856,1745573443068,-500.0,0.00019999,2]
[358941858,1745573443078,-500.0,0.00019999,2]
[358941860,1745573443087,-500.0,0.00019999,2]